[Event "*** Titled Tuesday Blitz"]
[Site "Chess.com"]
[Date "2020.10.20"]
[Round "5"]
[White "JoachimMouhamad"]
[Black "WonderChampion"]
[Result "1-0"]
[WhiteElo "2308"]
[BlackElo "2042"]
[TimeControl "180+1"]
[EndTime "10:57:48 PDT"]
[Termination "JoachimMouhamad won by resignation"]

1. e4 {[%clk 0:02:58.4]} 1... c5 {[%clk 0:02:58.7]} 2. Nf3 {[%clk 0:02:58.3]}
2... g6 {[%clk 0:02:57.9]} 3. d4 {[%clk 0:02:58.5]} 3... cxd4 {[%clk 0:02:57.6]}
4. Nxd4 {[%clk 0:02:59.4]} 4... Nc6 {[%clk 0:02:57.3]} 5. c4 {[%clk 0:02:57.6]}
5... Bg7 {[%clk 0:02:54.9]} 6. Be3 {[%clk 0:02:57.7]} 6... Nf6 {[%clk 0:02:52]}
7. Nc3 {[%clk 0:02:57.2]} 7... O-O {[%clk 0:02:49]} 8. Be2 {[%clk 0:02:56.7]}
8... d6 {[%clk 0:02:43.2]} 9. O-O {[%clk 0:02:53.3]} 9... Bd7 {[%clk 0:02:42.2]}
10. Rc1 {[%clk 0:02:50.9]} 10... Rc8 {[%clk 0:02:41]} 11. b3 {[%clk 0:02:49.6]}
11... b6 {[%clk 0:02:34.1]} 12. f3 {[%clk 0:02:41.5]} 12... Qc7 {[%clk
0:02:30.3]} 13. Qd2 {[%clk 0:02:41.1]} 13... Nxd4 {[%clk 0:02:29.5]} 14. Bxd4
{[%clk 0:02:40.5]} 14... Bc6 {[%clk 0:02:30.4]} 15. Rfd1 {[%clk 0:02:36.6]}
15... Bb7 {[%clk 0:02:29.6]} 16. Nd5 {[%clk 0:02:11.2]} 16... Nxd5 {[%clk
0:02:27.6]} 17. Bxg7 {[%clk 0:02:07]} 17... Kxg7 {[%clk 0:02:24.9]} 18. exd5
{[%clk 0:02:05.6]} 18... Qd7 {[%clk 0:02:23.1]} 19. Qd4+ {[%clk 0:02:04.5]}
19... Kg8 {[%clk 0:02:22.3]} 20. Bd3 {[%clk 0:02:03.4]} 20... Ba6 {[%clk
0:02:21]} 21. Re1 {[%clk 0:02:02.8]} 21... b5 {[%clk 0:02:19.4]} 22. c5 {[%clk
0:01:55.6]} 22... dxc5 {[%clk 0:02:15.1]} 23. Rxc5 {[%clk 0:01:54.1]} 23... Rxc5
{[%clk 0:02:15.1]} 24. Qxc5 {[%clk 0:01:53.4]} 24... e6 {[%clk 0:02:12.2]} 25.
Qc6 {[%clk 0:01:06.1]} 25... Qxd5 {[%clk 0:01:44]} 26. Qxd5 {[%clk 0:01:05.9]}
26... exd5 {[%clk 0:01:43.8]} 27. Re7 {[%clk 0:01:04.8]} 27... Rc8 {[%clk
0:01:36.6]} 28. Kf2 {[%clk 0:00:45.2]} 28... Rc3 {[%clk 0:01:34.2]} 29. Ke2
{[%clk 0:00:44.3]} 29... Bc8 {[%clk 0:01:24.5]} 30. Kd2 {[%clk 0:00:41.8]} 30...
Rc5 {[%clk 0:01:21.6]} 31. b4 {[%clk 0:00:32.3]} 31... Rc6 {[%clk 0:01:18.1]}
32. Rxa7 {[%clk 0:00:30.1]} 32... Ra6 {[%clk 0:01:12.1]} 33. Rxa6 {[%clk
0:00:29.4]} 33... Bxa6 {[%clk 0:01:13]} 34. a4 {[%clk 0:00:28]} 34... Kf8 {[%clk
0:01:12.3]} 35. Bxb5 {[%clk 0:00:26.5]} 35... Bb7 {[%clk 0:01:11.4]} 36. Kd3
{[%clk 0:00:26.4]} 36... Ke7 {[%clk 0:01:10.8]} 37. Kd4 {[%clk 0:00:26.9]} 37...
Kd6 {[%clk 0:01:10.6]} 38. Bd3 {[%clk 0:00:25.3]} 38... f6 {[%clk 0:01:09.5]}
39. b5 {[%clk 0:00:24.4]} 39... Kc7 {[%clk 0:01:05.1]} 40. a5 {[%clk 0:00:24.1]}
40... Kd6 {[%clk 0:00:57.6]} 41. h4 {[%clk 0:00:23.1]} 41... f5 {[%clk
0:00:46.8]} 42. g3 {[%clk 0:00:20.6]} 42... Ba8 {[%clk 0:00:46.5]} 43. a6 {[%clk
0:00:19.3]} 43... h5 {[%clk 0:00:42.6]} 44. f4 {[%clk 0:00:19.2]} 44... Kc7
{[%clk 0:00:29.9]} 45. Kc5 {[%clk 0:00:19.4]} 45... Kc8 {[%clk 0:00:28.5]} 46.
b6 {[%clk 0:00:19.7]} 46... Kb8 {[%clk 0:00:28.4]} 47. Bb5 {[%clk 0:00:19.8]}
47... d4 {[%clk 0:00:26.9]} 48. Kxd4 {[%clk 0:00:18.7]} 48... Be4 {[%clk
0:00:26.8]} 49. Kc5 {[%clk 0:00:19.1]} 49... Ka8 {[%clk 0:00:23.9]} 50. Bc6+
{[%clk 0:00:19]} 50... Bxc6 {[%clk 0:00:23.1]} 51. Kxc6 {[%clk 0:00:19.9]} 51...
Kb8 {[%clk 0:00:23.8]} 52. b7 {[%clk 0:00:18.2]} 52... Ka7 {[%clk 0:00:23.7]}
53. Kc7 {[%clk 0:00:17.6]} 53... Kxa6 {[%clk 0:00:24.6]} 54. b8=Q {[%clk
0:00:17.1]} 54... Ka5 {[%clk 0:00:24.4]} 55. Kc6 {[%clk 0:00:17.6]} 55... Ka4
{[%clk 0:00:25.3]} 56. Kc5 {[%clk 0:00:18.1]} 1-0

[Event "*** Titled Tuesday Blitz"]
[Site "Chess.com"]
[Date "2020.10.20"]
[Round "5"]
[White "SHIVACalypso"]
[Black "Vandros57"]
[Result "1-0"]
[WhiteElo "2327"]
[BlackElo "2185"]
[TimeControl "180+1"]
[EndTime "10:57:48 PDT"]
[Termination "SHIVACalypso won on time"]

1. Nf3 {[%clk 0:03:00.9]} 1... d5 {[%clk 0:02:58.5]} 2. c4 {[%clk 0:03:00.3]}
2... e6 {[%clk 0:02:57]} 3. g3 {[%clk 0:02:58.8]} 3... Nf6 {[%clk 0:02:53.6]} 4.
Bg2 {[%clk 0:02:56]} 4... c5 {[%clk 0:02:53.4]} 5. cxd5 {[%clk 0:02:55.1]} 5...
exd5 {[%clk 0:02:52.2]} 6. d4 {[%clk 0:02:55.2]} 6... Nc6 {[%clk 0:02:50.6]} 7.
O-O {[%clk 0:02:51.2]} 7... Be7 {[%clk 0:02:49.8]} 8. a3 {[%clk 0:02:46.4]} 8...
Be6 {[%clk 0:02:46.2]} 9. dxc5 {[%clk 0:02:40.8]} 9... Bxc5 {[%clk 0:02:45.2]}
10. b4 {[%clk 0:02:39.7]} 10... Bb6 {[%clk 0:02:41.8]} 11. Bb2 {[%clk
0:02:35.9]} 11... O-O {[%clk 0:02:40.7]} 12. Nbd2 {[%clk 0:02:33.3]} 12... Ne4
{[%clk 0:02:34]} 13. Nb3 {[%clk 0:02:30.8]} 13... Qd7 {[%clk 0:02:23.8]} 14.
Nfd4 {[%clk 0:02:28.3]} 14... Bh3 {[%clk 0:02:18.7]} 15. Rc1 {[%clk 0:02:22.9]}
15... Rac8 {[%clk 0:02:11.1]} 16. Nxc6 {[%clk 0:01:32.5]} 16... Rxc6 {[%clk
0:01:55.5]} 17. e3 {[%clk 0:01:21]} 17... Bxg2 {[%clk 0:01:53.3]} 18. Kxg2
{[%clk 0:01:20.9]} 18... Rh6 {[%clk 0:01:51.8]} 19. h4 {[%clk 0:01:14.7]} 19...
g5 {[%clk 0:01:38.3]} 20. h5 {[%clk 0:01:03.4]} 20... g4 {[%clk 0:01:32.7]} 21.
Rh1 {[%clk 0:00:58.9]} 21... Qf5 {[%clk 0:01:29.5]} 22. Qe2 {[%clk 0:00:57]}
22... Rxh5 {[%clk 0:01:25.3]} 23. Rxh5 {[%clk 0:00:56]} 23... Qxh5 {[%clk
0:01:24.7]} 24. Rh1 {[%clk 0:00:56]} 24... Qf5 {[%clk 0:01:21.7]} 25. Bd4 {[%clk
0:00:40.9]} 25... Bxd4 {[%clk 0:01:01.7]} 26. Nxd4 {[%clk 0:00:41.8]} 26... Qg6
{[%clk 0:00:58.1]} 27. Rh4 {[%clk 0:00:27.5]} 27... h5 {[%clk 0:00:55.6]} 28.
Qf1 {[%clk 0:00:24.3]} 28... Rc8 {[%clk 0:00:45]} 29. f3 {[%clk 0:00:22.9]}
29... Nf6 {[%clk 0:00:27.7]} 30. Qe2 {[%clk 0:00:11.1]} 30... Qb1 {[%clk
0:00:21.4]} 31. fxg4 {[%clk 0:00:09.5]} 31... hxg4 {[%clk 0:00:16.9]} 32. Rxg4+
{[%clk 0:00:10]} 32... Kf8 {[%clk 0:00:13.2]} 33. Rh4 {[%clk 0:00:09.8]} 33...
Rc1 {[%clk 0:00:12.1]} 34. Qf2 {[%clk 0:00:07.4]} 34... Rd1 {[%clk 0:00:09.8]}
35. Qxf6 {[%clk 0:00:05.2]} 35... Rg1+ {[%clk 0:00:09.3]} 36. Kh3 {[%clk
0:00:05.7]} 36... Rh1+ {[%clk 0:00:08.1]} 37. Kg4 {[%clk 0:00:05.6]} 37... Qe4+
{[%clk 0:00:06.5]} 38. Kg5 {[%clk 0:00:05.1]} 38... Rxh4 {[%clk 0:00:05.6]} 39.
gxh4 {[%clk 0:00:06]} 39... Qg2+ {[%clk 0:00:04.9]} 40. Kf4 {[%clk 0:00:05.2]}
40... Qf2+ {[%clk 0:00:04.1]} 41. Kg4 {[%clk 0:00:02.4]} 41... Qg2+ {[%clk
0:00:03.5]} 42. Kh5 {[%clk 0:00:02.3]} 42... Qh3 {[%clk 0:00:01.7]} 43. Qg5
{[%clk 0:00:01.9]} 43... Qd7 {[%clk 0:00:01]} 44. Qh6+ {[%clk 0:00:02.2]} 1-0

[Event "*** Titled Tuesday Blitz"]
[Site "Chess.com"]
[Date "2020.10.20"]
[Round "5"]
[White "Trickov"]
[Black "MuhittinBuker"]
[Result "1-0"]
[WhiteElo "2340"]
[BlackElo "2097"]
[TimeControl "180+1"]
[EndTime "10:57:49 PDT"]
[Termination "Trickov won on time"]

1. d4 {[%clk 0:02:54]} 1... Nf6 {[%clk 0:02:57.9]} 2. Nf3 {[%clk 0:02:47.9]}
2... e6 {[%clk 0:02:56.4]} 3. g3 {[%clk 0:02:46.9]} 3... d5 {[%clk 0:02:55.7]}
4. Bg2 {[%clk 0:02:46.9]} 4... Be7 {[%clk 0:02:56.3]} 5. c4 {[%clk 0:02:46.6]}
5... O-O {[%clk 0:02:56.7]} 6. O-O {[%clk 0:02:47.2]} 6... dxc4 {[%clk
0:02:56.5]} 7. Na3 {[%clk 0:02:41.9]} 7... Bxa3 {[%clk 0:02:42.1]} 8. bxa3
{[%clk 0:02:41.6]} 8... Nc6 {[%clk 0:02:28.9]} 9. a4 {[%clk 0:02:29.3]} 9... Rb8
{[%clk 0:02:09.3]} 10. Ba3 {[%clk 0:02:28.3]} 10... Re8 {[%clk 0:02:07.6]} 11.
Rc1 {[%clk 0:02:28.6]} 11... b6 {[%clk 0:02:05.8]} 12. Rxc4 {[%clk 0:02:22.4]}
12... Ne7 {[%clk 0:02:01.7]} 13. Qc2 {[%clk 0:02:17.7]} 13... c6 {[%clk
0:01:47.4]} 14. Ne5 {[%clk 0:02:13.9]} 14... Ba6 {[%clk 0:01:45.5]} 15. Bxe7
{[%clk 0:02:04.4]} 15... Qxe7 {[%clk 0:01:32.6]} 16. Nxc6 {[%clk 0:02:04.7]}
16... Qd6 {[%clk 0:01:26.7]} 17. Nxb8 {[%clk 0:01:54]} 17... Bxc4 {[%clk
0:01:25.7]} 18. Qxc4 {[%clk 0:01:46.9]} 18... Rxb8 {[%clk 0:01:25.4]} 19. Rc1
{[%clk 0:01:44.8]} 19... Rd8 {[%clk 0:01:25.2]} 20. e3 {[%clk 0:01:43.9]} 20...
g6 {[%clk 0:01:11.5]} 21. Qc7 {[%clk 0:01:42.3]} 21... Qxc7 {[%clk 0:01:09.2]}
22. Rxc7 {[%clk 0:01:40.5]} 22... Rd7 {[%clk 0:01:09.7]} 23. Rc8+ {[%clk
0:01:38.9]} 23... Kg7 {[%clk 0:01:09.3]} 24. Bc6 {[%clk 0:01:35.9]} 24... Re7
{[%clk 0:01:08.2]} 25. Kg2 {[%clk 0:01:29.1]} 25... h5 {[%clk 0:01:03.7]} 26. h4
{[%clk 0:01:28.5]} 26... Ng4 {[%clk 0:01:01.1]} 27. e4 {[%clk 0:01:16.2]} 27...
Kf6 {[%clk 0:00:48.8]} 28. f3 {[%clk 0:01:03.6]} 28... Ne3+ {[%clk 0:00:44.7]}
29. Kf2 {[%clk 0:01:00]} 29... Nc2 {[%clk 0:00:32.2]} 30. d5 {[%clk 0:00:59]}
30... exd5 {[%clk 0:00:31.6]} 31. Bxd5 {[%clk 0:00:58.1]} 31... Nb4 {[%clk
0:00:24.3]} 32. Bb3 {[%clk 0:00:57.5]} 32... Nd3+ {[%clk 0:00:22.9]} 33. Ke3
{[%clk 0:00:54.8]} 33... Nc5 {[%clk 0:00:22]} 34. Rc6+ {[%clk 0:00:45.6]} 34...
Kg7 {[%clk 0:00:21]} 35. a5 {[%clk 0:00:41.9]} 35... Nxb3 {[%clk 0:00:17.4]} 36.
axb3 {[%clk 0:00:41.4]} 36... bxa5 {[%clk 0:00:17.5]} 37. Kd4 {[%clk 0:00:37.6]}
37... Rb7 {[%clk 0:00:17.9]} 38. Kc3 {[%clk 0:00:37.3]} 38... Kf8 {[%clk
0:00:15.1]} 39. Ra6 {[%clk 0:00:37.1]} 39... Ke7 {[%clk 0:00:15.6]} 40. Rxa5
{[%clk 0:00:36.9]} 40... Kd7 {[%clk 0:00:15]} 41. b4 {[%clk 0:00:35.9]} 41...
Kc7 {[%clk 0:00:14]} 42. Kc4 {[%clk 0:00:34.6]} 42... Kb6 {[%clk 0:00:13.3]} 43.
Rb5+ {[%clk 0:00:33.4]} 43... Kc6 {[%clk 0:00:13]} 44. Rc5+ {[%clk 0:00:33.4]}
44... Kd6 {[%clk 0:00:12.7]} 45. b5 {[%clk 0:00:31.4]} 45... Kd7 {[%clk
0:00:03.4]} 46. Rc6 {[%clk 0:00:28.4]} 46... Ke7 {[%clk 0:00:02.3]} 47. Rc5
{[%clk 0:00:21.9]} 47... Rd7 {[%clk 0:00:01.5]} 48. Rd5 {[%clk 0:00:21.6]} 48...
Rc7+ {[%clk 0:00:01.6]} 49. Kd4 {[%clk 0:00:21.5]} 1-0

[Event "*** Titled Tuesday Blitz"]
[Site "Chess.com"]
[Date "2020.10.20"]
[Round "5"]
[White "chito89"]
[Black "ChessWarrior7197"]
[Result "0-1"]
[WhiteElo "2811"]
[BlackElo "3015"]
[TimeControl "180+1"]
[EndTime "10:57:50 PDT"]
[Termination "ChessWarrior7197 won on time"]

1. c4 {[%clk 0:02:56.1]} 1... b6 {[%clk 0:02:58.9]} 2. Nc3 {[%clk 0:02:54.2]}
2... Bb7 {[%clk 0:02:58.3]} 3. d4 {[%clk 0:02:54.9]} 3... e6 {[%clk 0:02:57.3]}
4. a3 {[%clk 0:02:55.3]} 4... f5 {[%clk 0:02:56.4]} 5. Nf3 {[%clk 0:02:53.3]}
5... Nf6 {[%clk 0:02:56.2]} 6. Bf4 {[%clk 0:02:53.8]} 6... Be7 {[%clk
0:02:42.2]} 7. e3 {[%clk 0:02:50.3]} 7... O-O {[%clk 0:02:41.7]} 8. h3 {[%clk
0:02:50.2]} 8... Qe8 {[%clk 0:02:36.3]} 9. Bd3 {[%clk 0:02:45.3]} 9... d6 {[%clk
0:02:35.6]} 10. Bh2 {[%clk 0:02:32.2]} 10... Nbd7 {[%clk 0:02:35.1]} 11. Qc2
{[%clk 0:02:20.7]} 11... c5 {[%clk 0:02:27.1]} 12. d5 {[%clk 0:02:16.8]} 12...
exd5 {[%clk 0:02:22.5]} 13. cxd5 {[%clk 0:02:17.2]} 13... g6 {[%clk 0:02:08.3]}
14. O-O-O {[%clk 0:02:08.1]} 14... a6 {[%clk 0:02:08.1]} 15. e4 {[%clk
0:02:05.4]} 15... fxe4 {[%clk 0:02:05.7]} 16. Nxe4 {[%clk 0:02:05.2]} 16... Nxe4
{[%clk 0:02:00.4]} 17. Bxe4 {[%clk 0:02:06.1]} 17... Qf7 {[%clk 0:02:01]} 18.
Rhe1 {[%clk 0:01:59.7]} 18... c4 {[%clk 0:01:55.1]} 19. Nd4 {[%clk 0:01:53.6]}
19... Nc5 {[%clk 0:01:49.7]} 20. Nc6 {[%clk 0:01:21.4]} 20... Bg5+ {[%clk
0:01:34.1]} 21. Kb1 {[%clk 0:01:20.9]} 21... Bf4 {[%clk 0:01:32.7]} 22. Bxf4
{[%clk 0:01:11.4]} 22... Qxf4 {[%clk 0:01:33.6]} 23. Bxg6 {[%clk 0:01:11.9]}
23... Qf6 {[%clk 0:01:10.3]} 24. Bxh7+ {[%clk 0:01:08.5]} 24... Kh8 {[%clk
0:01:10.8]} 25. g4 {[%clk 0:00:40.8]} 25... Rae8 {[%clk 0:01:01.3]} 26. Bf5
{[%clk 0:00:39.6]} 26... b5 {[%clk 0:01:00.2]} 27. Qd2 {[%clk 0:00:33.5]} 27...
Bc8 {[%clk 0:00:56.4]} 28. Bxc8 {[%clk 0:00:31.5]} 28... Rxc8 {[%clk 0:00:57.2]}
29. Ne7 {[%clk 0:00:22.5]} 29... Rce8 {[%clk 0:00:55.2]} 30. Nf5 {[%clk
0:00:22.7]} 30... Nd3 {[%clk 0:00:55.2]} 31. Rxe8 {[%clk 0:00:22.1]} 31... Rxe8
{[%clk 0:00:56.1]} 32. Qc3 {[%clk 0:00:09.2]} 32... Qxc3 {[%clk 0:00:44.1]} 33.
bxc3 {[%clk 0:00:10.1]} 33... Nxf2 {[%clk 0:00:45]} 34. Rd4 {[%clk 0:00:10.4]}
34... Ne4 {[%clk 0:00:42.1]} 35. Kc2 {[%clk 0:00:09.8]} 35... Kh7 {[%clk
0:00:40.8]} 36. h4 {[%clk 0:00:09.9]} 36... Kg6 {[%clk 0:00:40.5]} 37. a4 {[%clk
0:00:10.4]} 37... Kf6 {[%clk 0:00:39.5]} 38. axb5 {[%clk 0:00:10.4]} 38... axb5
{[%clk 0:00:40.4]} 39. Kb2 {[%clk 0:00:10]} 39... Re5 {[%clk 0:00:34]} 40. h5
{[%clk 0:00:08.3]} 40... Kg5 {[%clk 0:00:32.6]} 41. h6 {[%clk 0:00:08.8]} 41...
Kg6 {[%clk 0:00:25.2]} 42. Rd1 {[%clk 0:00:03.6]} 42... Nf2 {[%clk 0:00:25.6]}
43. Rf1 {[%clk 0:00:02.5]} 43... Nd3+ {[%clk 0:00:25]} 44. Kc2 {[%clk
0:00:01.4]} 44... Re2+ {[%clk 0:00:19.6]} 45. Kd1 {[%clk 0:00:01.8]} 45... Ra2
{[%clk 0:00:13.9]} 46. Nxd6 {[%clk 0:00:02.5]} 46... b4 {[%clk 0:00:14.5]} 47.
Nxc4 {[%clk 0:00:01.4]} 47... bxc3 {[%clk 0:00:14.4]} 0-1

[Event "*** Titled Tuesday Blitz"]
[Site "Chess.com"]
[Date "2020.10.20"]
[Round "5"]
[White "RestartingChess"]
[Black "ItsCheckM8Mate"]
[Result "0-1"]
[WhiteElo "2511"]
[BlackElo "2378"]
[TimeControl "180+1"]
[EndTime "10:57:50 PDT"]
[Termination "ItsCheckM8Mate won by checkmate"]

1. e4 {[%clk 0:03:00.9]} 1... e5 {[%clk 0:02:59.6]} 2. Nf3 {[%clk 0:03:01.4]}
2... Nc6 {[%clk 0:02:58.9]} 3. Bc4 {[%clk 0:03:02.1]} 3... Nf6 {[%clk
0:02:57.4]} 4. d3 {[%clk 0:03:01.9]} 4... h6 {[%clk 0:02:57.2]} 5. h3 {[%clk
0:03:02.4]} 5... d6 {[%clk 0:02:53.6]} 6. Nc3 {[%clk 0:03:02.4]} 6... g6 {[%clk
0:02:53]} 7. Nd5 {[%clk 0:03:02.9]} 7... Bg7 {[%clk 0:02:53]} 8. c3 {[%clk
0:03:02.1]} 8... O-O {[%clk 0:02:52.3]} 9. Be3 {[%clk 0:03:02.6]} 9... Na5
{[%clk 0:02:50.9]} 10. Bb3 {[%clk 0:02:54.7]} 10... Nxb3 {[%clk 0:02:50.1]} 11.
Qxb3 {[%clk 0:02:55.3]} 11... c6 {[%clk 0:02:33.5]} 12. Nxf6+ {[%clk 0:02:54.9]}
12... Qxf6 {[%clk 0:02:33.4]} 13. c4 {[%clk 0:02:45.1]} 13... a5 {[%clk
0:02:21.2]} 14. a4 {[%clk 0:02:40.5]} 14... Kh7 {[%clk 0:02:09]} 15. Nh2 {[%clk
0:02:34]} 15... Qe7 {[%clk 0:02:01.6]} 16. O-O {[%clk 0:02:29.8]} 16... Be6
{[%clk 0:01:52.5]} 17. f4 {[%clk 0:02:26.1]} 17... exf4 {[%clk 0:01:44.9]} 18.
Bxf4 {[%clk 0:02:27]} 18... Rad8 {[%clk 0:01:41.6]} 19. Rae1 {[%clk 0:02:21]}
19... Qh4 {[%clk 0:01:35]} 20. Qc2 {[%clk 0:02:10]} 20... d5 {[%clk 0:01:34.4]}
21. cxd5 {[%clk 0:02:07.9]} 21... cxd5 {[%clk 0:01:33.9]} 22. e5 {[%clk
0:02:03.2]} 22... Rc8 {[%clk 0:01:33.2]} 23. Qd2 {[%clk 0:02:02.9]} 23... g5
{[%clk 0:01:20.4]} 24. Be3 {[%clk 0:01:50.2]} 24... Qxa4 {[%clk 0:01:19.8]} 25.
Nf3 {[%clk 0:01:42.9]} 25... Qc2 {[%clk 0:00:51.6]} 26. Nd4 {[%clk 0:01:27.6]}
26... Qc7 {[%clk 0:00:39.9]} 27. h4 {[%clk 0:00:50.7]} 27... Bxe5 {[%clk
0:00:32.5]} 28. hxg5 {[%clk 0:00:48]} 28... hxg5 {[%clk 0:00:30.6]} 29. Nf3
{[%clk 0:00:45.2]} 29... f6 {[%clk 0:00:25.9]} 30. d4 {[%clk 0:00:43.2]} 30...
Bg3 {[%clk 0:00:24.3]} 31. Qd3+ {[%clk 0:00:32.6]} 31... Kg7 {[%clk 0:00:22.8]}
32. Re2 {[%clk 0:00:24.5]} 32... Rh8 {[%clk 0:00:22.1]} 33. Bxg5 {[%clk
0:00:14.7]} 33... fxg5 {[%clk 0:00:19.7]} 34. Rxe6 {[%clk 0:00:10.5]} 34... Bh2+
{[%clk 0:00:15.1]} 35. Kf2 {[%clk 0:00:10.7]} 35... Qg3+ {[%clk 0:00:14]} 36.
Ke2 {[%clk 0:00:11.4]} 36... Qxg2+ {[%clk 0:00:10.8]} 37. Rf2 {[%clk 0:00:12.1]}
37... Qg4 {[%clk 0:00:06.3]} 38. Qg6+ {[%clk 0:00:12.1]} 38... Kf8 {[%clk
0:00:06.3]} 39. Rf6+ {[%clk 0:00:07.1]} 39... Ke7 {[%clk 0:00:06.4]} 40. Qf7+
{[%clk 0:00:08]} 40... Kd8 {[%clk 0:00:05.5]} 41. Rd6+ {[%clk 0:00:08.8]} 41...
Bxd6 {[%clk 0:00:02.5]} 42. Qf6+ {[%clk 0:00:09.3]} 42... Be7 {[%clk 0:00:02.4]}
43. Ke3 {[%clk 0:00:10.2]} 43... Bxf6 {[%clk 0:00:01.7]} 44. Ne5 {[%clk
0:00:11.1]} 44... Qe4+ {[%clk 0:00:01.5]} 45. Kd2 {[%clk 0:00:11.2]} 45... Rc2+
{[%clk 0:00:02.1]} 46. Kd1 {[%clk 0:00:11.7]} 46... Rxf2 {[%clk 0:00:02.2]} 47.
Nf7+ {[%clk 0:00:10.3]} 47... Ke7 {[%clk 0:00:02.5]} 48. Nxg5 {[%clk 0:00:10.7]}
48... Qb1# {[%clk 0:00:02.5]} 0-1

[Event "*** Titled Tuesday Blitz"]
[Site "Chess.com"]
[Date "2020.10.20"]
[Round "5"]
[White "sbouchet"]
[Black "HrvojeZagreb"]
[Result "1/2-1/2"]
[WhiteElo "2413"]
[BlackElo "2203"]
[TimeControl "180+1"]
[EndTime "10:57:52 PDT"]
[Termination "Game drawn by repetition"]

1. e4 {[%clk 0:03:00.9]} 1... e6 {[%clk 0:02:57.6]} 2. d4 {[%clk 0:02:58.3]}
2... d5 {[%clk 0:02:57.5]} 3. Nd2 {[%clk 0:02:58.3]} 3... dxe4 {[%clk
0:02:57.5]} 4. Nxe4 {[%clk 0:02:56.9]} 4... Nd7 {[%clk 0:02:57.4]} 5. Nf3 {[%clk
0:02:55.7]} 5... Ngf6 {[%clk 0:02:57.6]} 6. Bd3 {[%clk 0:02:46.9]} 6... b6
{[%clk 0:02:56.6]} 7. O-O {[%clk 0:02:45.3]} 7... Bb7 {[%clk 0:02:55.9]} 8. Qe2
{[%clk 0:02:45.9]} 8... Be7 {[%clk 0:02:53.1]} 9. b3 {[%clk 0:02:43.9]} 9... O-O
{[%clk 0:02:50.8]} 10. Bb2 {[%clk 0:02:44]} 10... Nxe4 {[%clk 0:02:48.3]} 11.
Bxe4 {[%clk 0:02:43.8]} 11... Bxe4 {[%clk 0:02:49.2]} 12. Qxe4 {[%clk
0:02:44.4]} 12... Nf6 {[%clk 0:02:49]} 13. Qe2 {[%clk 0:02:38.9]} 13... a5
{[%clk 0:02:38.3]} 14. a4 {[%clk 0:02:37.4]} 14... Qd5 {[%clk 0:02:36.2]} 15.
Rfe1 {[%clk 0:02:28]} 15... Rfd8 {[%clk 0:02:35]} 16. c4 {[%clk 0:02:24.3]}
16... Qh5 {[%clk 0:02:34.1]} 17. Ne5 {[%clk 0:02:23.9]} 17... Qxe2 {[%clk
0:02:33.6]} 18. Rxe2 {[%clk 0:02:24.8]} 18... c5 {[%clk 0:02:24.4]} 19. Nc6
{[%clk 0:01:59.9]} 19... Rd7 {[%clk 0:02:23.4]} 20. Nxe7+ {[%clk 0:02:00]} 20...
Rxe7 {[%clk 0:02:23.3]} 21. d5 {[%clk 0:02:00.7]} 21... Rae8 {[%clk 0:02:10.5]}
22. Rae1 {[%clk 0:01:57.2]} 22... Kf8 {[%clk 0:02:04.6]} 23. Be5 {[%clk
0:01:52.2]} 23... Rd7 {[%clk 0:01:56]} 24. Bxf6 {[%clk 0:01:18.3]} 24... gxf6
{[%clk 0:01:56.9]} 25. f4 {[%clk 0:01:18.5]} 25... Rde7 {[%clk 0:01:34.4]} 26.
dxe6 {[%clk 0:01:05.7]} 26... Rxe6 {[%clk 0:01:24.3]} 27. Kf2 {[%clk 0:00:54.2]}
27... f5 {[%clk 0:01:15.5]} 28. Rxe6 {[%clk 0:00:45.2]} 28... fxe6 {[%clk
0:01:11.5]} 29. Rd1 {[%clk 0:00:44.9]} 29... Ke7 {[%clk 0:01:11.4]} 30. Kg3
{[%clk 0:00:39.2]} 30... Rg8+ {[%clk 0:01:09.1]} 31. Kh3 {[%clk 0:00:37.3]}
31... Rg7 {[%clk 0:00:39]} 32. g3 {[%clk 0:00:36.9]} 32... Rg8 {[%clk
0:00:38.8]} 33. Kh4 {[%clk 0:00:36.7]} 33... Rg6 {[%clk 0:00:36.4]} 34. Kh5
{[%clk 0:00:35.6]} 34... Rf6 {[%clk 0:00:32.8]} 35. h3 {[%clk 0:00:29.1]} 35...
Rg6 {[%clk 0:00:32.3]} 36. g4 {[%clk 0:00:28.8]} 36... fxg4 {[%clk 0:00:30.2]}
37. hxg4 {[%clk 0:00:29.7]} 37... Rf6 {[%clk 0:00:30.3]} 38. Kg5 {[%clk
0:00:24.9]} 38... h6+ {[%clk 0:00:20.8]} 39. Kh5 {[%clk 0:00:20.6]} 39... Rxf4
{[%clk 0:00:20.9]} 40. Rg1 {[%clk 0:00:19.7]} 40... Rf3 {[%clk 0:00:14.5]} 41.
Kxh6 {[%clk 0:00:19.3]} 41... Rxb3 {[%clk 0:00:12.8]} 42. Kg7 {[%clk 0:00:19.3]}
42... Rb4 {[%clk 0:00:12.1]} 43. g5 {[%clk 0:00:19.7]} 43... Rxc4 {[%clk
0:00:12.5]} 44. g6 {[%clk 0:00:20.4]} 44... Rh4 {[%clk 0:00:11.8]} 45. Kg8
{[%clk 0:00:19.8]} 45... c4 {[%clk 0:00:11.6]} 46. g7 {[%clk 0:00:18.8]} 46...
c3 {[%clk 0:00:11.7]} 47. Rg3 {[%clk 0:00:15.5]} 47... c2 {[%clk 0:00:11.2]} 48.
Rc3 {[%clk 0:00:14.8]} 48... Rh2 {[%clk 0:00:11.4]} 49. Rc7+ {[%clk 0:00:13.7]}
49... Kd6 {[%clk 0:00:10.9]} 50. Rc8 {[%clk 0:00:14]} 50... Kd7 {[%clk
0:00:10.6]} 51. Rc3 {[%clk 0:00:13.3]} 51... Ke7 {[%clk 0:00:10.7]} 52. Rc7+
{[%clk 0:00:13]} 52... Kd6 {[%clk 0:00:11.1]} 53. Rc8 {[%clk 0:00:13.4]} 53...
Kd7 {[%clk 0:00:11.4]} 54. Rc3 {[%clk 0:00:09.9]} 54... Ke7 {[%clk 0:00:11.4]}
1/2-1/2